bitfinex-derivatives/quotes_BTCF0:USTF0_20250814
["timestamp","ask_amount","ask_price","bid_price","bid_amount"]
[1755144046570,1.94876718,123510.0,123500.0,0.01458609]
[1755144046869,1.94876718,123510.0,123500.0,0.01558609]
[1755144047670,1.94876718,123510.0,123500.0,0.01558062]
[1755144053784,1.89081737,123510.0,123500.0,0.01558062]
[1755144054472,1.90853965,123510.0,123500.0,0.01558062]
[1755144055375,1.96648946,123510.0,123500.0,0.003]
[1755144055979,1.90853965,123510.0,123500.0,0.003]
[1755144056478,1.96643882,123510.0,123500.0,0.003]
[1755144058477,1.21403882,123510.0,123500.0,0.003]
[1755144058678,1.96619882,123510.0,123500.0,0.003]
[1755144058873,0.0809546,123480.0,123470.0,0.4730298]
[1755144059074,1.48596938,123480.0,123470.0,0.02174964]
[1755144059379,1.84676938,123480.0,123470.0,0.02174964]
[1755144059578,1.44990718,123480.0,123470.0,0.02174964]
[1755144059779,1.84676938,123480.0,123470.0,0.10271084]
[1755144059967,1.84676938,123480.0,123470.0,0.20977084]
[1755144060171,1.84776938,123480.0,123470.0,0.21777084]
[1755144060373,1.84776938,123480.0,123470.0,0.13680964]
[1755144060576,1.84776938,123480.0,123470.0,0.11420964]
[1755144060780,1.84776938,123480.0,123470.0,0.11020964]
[1755144061077,1.84776938,123480.0,123470.0,0.19117084]
[1755144061377,1.84776938,123480.0,123470.0,0.21377084]
[1755144061974,1.84776938,123480.0,123470.0,0.21376682]
[1755144062174,1.84676938,123480.0,123470.0,0.21076682]
[1755144065484,1.48596938,123480.0,123470.0,0.21076682]
[1755144066183,0.65285478,123480.0,123470.0,0.21076682]
[1755144066483,1.40489478,123480.0,123470.0,0.21076682]
[1755144067181,1.48584938,123480.0,123470.0,0.1982012]
[1755144067581,1.40489478,123480.0,123470.0,0.21075933]
[1755144067777,1.40489478,123480.0,123470.0,0.1982012]
[1755144067976,1.40489478,123480.0,123470.0,0.21075933]
[1755144068176,1.00803258,123480.0,123470.0,0.21075933]
[1755144068375,0.25599258,123480.0,123470.0,0.21075933]
[1755144068576,1.00799258,123480.0,123470.0,0.21075933]
[1755144070873,1.08894718,123480.0,123470.0,0.21075933]
[1755144071080,1.48580938,123480.0,123470.0,0.21075933]
[1755144072186,1.40485478,123480.0,123470.0,0.21075933]
[1755144072386,0.65285478,123480.0,123470.0,0.21075933]
[1755144072586,1.00787258,123480.0,123470.0,0.21075933]
[1755144073288,0.14093258,123480.0,123470.0,0.96842153]
[1755144073482,0.02093258,123480.0,123470.0,0.96842153]
[1755144073687,0.02093258,123480.0,123470.0,1.13034013]
[1755144073883,0.05980258,123480.0,123470.0,1.13034013]
[1755144074084,0.09267258,123480.0,123470.0,1.13034013]
[1755144074586,0.02093258,123480.0,123470.0,1.88226359]
[1755144075084,0.02093258,123480.0,123470.0,1.13042359]
[1755144075350,0.02093258,123480.0,123470.0,1.88222359]
[1755144076998,0.02093258,123480.0,123470.0,1.13042359]
[1755144077193,0.02093258,123480.0,123470.0,1.88218359]
[1755144077897,0.02093258,123480.0,123470.0,1.13042359]
[1755144078199,0.02093258,123480.0,123470.0,1.88214359]
[1755144079596,0.02093258,123480.0,123470.0,1.88215]
[1755144080397,0.02093258,123480.0,123470.0,1.4852878]
[1755144080599,0.02093258,123480.0,123470.0,1.88215]
[1755144084993,0.02093258,123480.0,123470.0,1.88191]
[1755144085189,0.02093258,123480.0,123470.0,1.89457111]
[1755144085398,0.02093258,123480.0,123470.0,1.14309111]
[1755144085604,0.02093258,123480.0,123470.0,1.88187]
[1755144086201,0.02093258,123480.0,123470.0,1.89453048]
[1755144087105,0.02093258,123480.0,123470.0,1.14309048]
[1755144087406,0.02093258,123480.0,123470.0,1.89453048]
[1755144088600,0.02093258,123480.0,123470.0,1.89445048]
[1755144089404,0.02093258,123480.0,123470.0,1.14309048]
[1755144089609,0.02093258,123480.0,123470.0,1.89441048]
[1755144092505,0.02093258,123480.0,123470.0,1.89433048]
[1755144094208,0.07363,123490.0,123480.0,0.1295247]
[1755144094410,0.11535719,123490.0,123480.0,1.33682598]
[1755144094609,0.11535719,123490.0,123480.0,1.73368818]
[1755144094810,0.11535719,123490.0,123480.0,1.33682598]
[1755144095007,0.12742719,123490.0,123480.0,1.73368818]
[1755144095608,0.13758719,123490.0,123480.0,1.73368818]
[1755144096203,0.13758719,123490.0,123480.0,1.73468818]
[1755144097510,0.13758719,123490.0,123480.0,0.98344879]
[1755144097710,0.13758719,123490.0,123480.0,1.33770659]
[1755144097905,0.53444939,123490.0,123480.0,0.51664659]
[1755144098101,0.72539749,123490.0,123480.0,0.5039855]
[1755144098304,0.72439749,123490.0,123480.0,0.5039855]
[1755144098504,0.64344939,123490.0,123480.0,0.5039855]
[1755144098902,0.64344939,123490.0,123480.0,0.5502755]
[1755144099107,0.64344939,123490.0,123480.0,0.5739255]
[1755144100309,0.70133323,123490.0,123480.0,0.5739255]
[1755144100505,0.70133323,123490.0,123480.0,0.5739263]
[1755144100506,0.19447103,123490.0,123480.0,0.5739263]
[1755144100713,0.13658719,123490.0,123480.0,0.5739263]
[1755144101215,0.13658719,123490.0,123480.0,0.58658773]
[1755144101417,0.13658719,123490.0,123480.0,0.5865878]
[1755144101614,0.13658719,123490.0,123480.0,0.4680778]
[1755144101819,0.53344939,123490.0,123480.0,0.5865878]
[1755144102016,0.54344939,123490.0,123480.0,0.5865878]
[1755144102511,0.61439759,123490.0,123480.0,0.5865878]
[1755144102714,0.12451719,123490.0,123480.0,1.73437]
[1755144102922,0.12451719,123490.0,123480.0,0.5865878]
[1755144103107,0.08299719,123490.0,123480.0,1.3433478]
[1755144103312,0.11535719,123490.0,123480.0,1.3433478]
[1755144103517,0.12742719,123490.0,123480.0,1.3433478]
[1755144103719,0.13658719,123490.0,123480.0,1.3433478]
[1755144104310,0.03719719,123490.0,123480.0,1.74021]
[1755144104919,0.03719719,123490.0,123480.0,0.98345]
[1755144105129,0.03719719,123490.0,123480.0,1.74009]
[1755144105615,0.03719719,123490.0,123480.0,1.3432278]
[1755144105813,0.03719719,123490.0,123480.0,1.73909]
[1755144106017,0.03719719,123490.0,123480.0,1.74009]
[1755144107420,0.02066719,123490.0,123480.0,1.3432278]
[1755144107620,0.02066719,123490.0,123480.0,1.74009]
[1755144107920,0.02066719,123490.0,123480.0,1.74109]
[1755144107921,0.02166719,123490.0,123480.0,1.74109]
[1755144108109,0.02166719,123490.0,123480.0,1.74209]
[1755144108315,0.02166719,123490.0,123480.0,1.3452278]
[1755144108516,0.02166719,123490.0,123480.0,1.74209]
[1755144109521,0.02166719,123490.0,123480.0,1.72942845]
[1755144109821,0.02166719,123490.0,123480.0,1.74208882]
[1755144112315,0.02166719,123490.0,123480.0,1.74208895]
[1755144112912,0.04640719,123490.0,123480.0,0.98544895]
[1755144113218,0.09529719,123490.0,123480.0,1.34394675]
[1755144114620,0.11635719,123490.0,123480.0,1.34394675]
[1755144114819,0.12842719,123490.0,123480.0,1.34386675]
[1755144115025,0.12842719,123490.0,123480.0,1.34390675]
[1755144116020,0.11535719,123490.0,123480.0,1.34190675]
[1755144116223,0.11635719,123490.0,123480.0,1.32924625]
[1755144116823,0.11635719,123490.0,123480.0,1.33024625]
[1755144118225,0.06293719,123490.0,123480.0,1.3302455]
[1755144120632,0.06293719,123490.0,123480.0,1.34290624]
[1755144121130,0.06293719,123490.0,123480.0,1.34186624]
[1755144121435,0.03884517,123490.0,123480.0,1.34186632]
[1755144121727,0.03884517,123490.0,123480.0,1.34186638]
[1755144122132,0.02231517,123490.0,123480.0,1.34186638]
[1755144124734,0.46878373,123490.0,123480.0,1.34186638]
[1755144124934,0.46878373,123490.0,123480.0,1.78833494]
[1755144125342,0.46878373,123490.0,123480.0,1.34186638]
[1755144125536,0.46878373,123490.0,123480.0,1.78833494]
[1755144126134,0.02231517,123490.0,123480.0,1.78833494]
[1755144126429,0.46878373,123490.0,123480.0,1.78833494]
[1755144127335,0.46878373,123490.0,123480.0,1.78809494]
[1755144127540,0.49249373,123490.0,123480.0,1.78809494]
[1755144127738,0.47117856,123490.0,123480.0,1.78809494]
[1755144127939,0.49249633,123490.0,123480.0,1.78809494]
[1755144129241,0.49249633,123490.0,123480.0,1.78809495]
[1755144130244,0.49249633,123490.0,123480.0,1.34162639]
[1755144130443,0.49249633,123490.0,123480.0,1.78809495]
[1755144130944,0.04602777,123490.0,123480.0,1.78809495]
[1755144131243,0.02231777,123490.0,123480.0,1.78809495]
[1755144131446,0.46878633,123490.0,123480.0,1.78809495]
[1755144132045,0.49249633,123490.0,123480.0,1.78809495]
[1755144133150,0.49249633,123490.0,123480.0,1.34162639]
[1755144133344,0.49249633,123490.0,123480.0,1.78809495]
[1755144133747,0.55038017,123490.0,123480.0,1.78809495]
[1755144134242,0.10391161,123490.0,123480.0,1.78809495]
[1755144134440,0.49249633,123490.0,123480.0,1.34162639]
[1755144134646,0.49249633,123490.0,123480.0,1.78809495]
[1755144135236,0.54125633,123490.0,123480.0,1.78809486]
[1755144135645,0.54125633,123490.0,123480.0,1.3416263]
[1755144135843,0.54125633,123490.0,123480.0,1.78809486]
[1755144136045,0.40637633,123490.0,123480.0,1.78809486]
[1755144137044,0.48732453,123490.0,123480.0,1.42729486]
[1755144137445,0.68484676,123490.0,123480.0,0.67325486]
[1755144137647,0.69691676,123490.0,123480.0,1.42617486]
[1755144137949,0.60690676,123490.0,123480.0,0.9797063]
[1755144138148,0.73690676,123490.0,123480.0,0.9797063]
[1755144139451,0.73690676,123490.0,123480.0,0.2267863]
[1755144139651,0.73690676,123490.0,123480.0,0.9797463]
[1755144140852,0.7947906,123490.0,123480.0,0.9797463]
[1755144141051,0.7947906,123490.0,123480.0,0.2267863]
[1755144141352,0.7947906,123490.0,123480.0,0.9791063]
[1755144141752,0.34832204,123490.0,123480.0,0.9791063]
[1755144141952,0.7947906,123490.0,123480.0,0.9791063]
[1755144142153,0.7947906,123490.0,123480.0,1.42557486]
[1755144142453,0.21832204,123490.0,123480.0,0.67325486]
[1755144142654,0.7947906,123490.0,123480.0,0.67325486]
[1755144142855,0.7947906,123490.0,123480.0,1.42533486]
[1755144143350,0.5838424,123490.0,123480.0,0.67325486]
[1755144143556,0.05788384,123490.0,123480.0,1.78597486]
[1755144143853,0.44646856,123490.0,123480.0,1.87794046]
[1755144144255,0.44646856,123490.0,123480.0,1.95087046]
[1755144144952,0.44646856,123490.0,123480.0,1.5044019]
[1755144145155,0.44646856,123490.0,123480.0,1.95087046]
[1755144145446,0.2748948,123500.0,123490.0,0.0809482]
[1755144145447,0.60835536,123500.0,123490.0,0.0809482]
[1755144145654,0.72835536,123500.0,123490.0,0.5856698]
[1755144145851,0.74834536,123500.0,123490.0,1.03213836]
[1755144146053,0.74834536,123500.0,123490.0,1.78385836]
[1755144146654,0.67947126,123500.0,123490.0,1.3373898]
[1755144146856,0.68047126,123500.0,123490.0,1.78485836]
[1755144147155,0.68047126,123500.0,123490.0,1.78485798]
[1755144147952,0.70214185,123500.0,123490.0,1.78485798]
[1755144148456,0.14267059,123500.0,123490.0,1.77219748]
[1755144148655,0.02267059,123500.0,123490.0,1.02047748]
[1755144148859,0.02267059,123500.0,123490.0,1.77183748]
[1755144149053,0.54395999,123510.0,123490.0,1.93372998]
[1755144149261,0.66024499,123510.0,123500.0,0.1995416]
[1755144149453,0.85909499,123510.0,123500.0,0.21220232]
[1755144150663,0.86009499,123510.0,123500.0,0.21220232]
[1755144151164,0.69849499,123510.0,123500.0,0.21220232]
[1755144151457,0.73208161,123510.0,123500.0,0.21220232]
[1755144151965,0.65114661,123510.0,123500.0,0.21220232]
[1755144152465,0.73208161,123510.0,123500.0,0.21320232]
[1755144152967,0.65114661,123510.0,123500.0,0.21320232]
[1755144153166,0.58425518,123510.0,123500.0,0.65967088]
[1755144153357,0.58425518,123510.0,123500.0,0.21320232]
[1755144153558,0.21872162,123510.0,123500.0,0.21320232]
[1755144153755,0.77519018,123510.0,123500.0,0.21320232]
[1755144154262,0.58425518,123510.0,123500.0,0.65967088]
[1755144154467,0.13778662,123510.0,123500.0,0.65967088]
[1755144154657,0.52797518,123510.0,123500.0,0.65967088]
[1755144155268,0.49541518,123510.0,123500.0,1.41127088]
[1755144155468,0.49541518,123510.0,123500.0,1.77207088]
[1755144155777,0.49641518,123510.0,123500.0,1.77207088]
[1755144155973,0.49641518,123510.0,123500.0,1.77107088]
[1755144156276,0.49641518,123510.0,123500.0,1.77207088]
[1755144156673,0.49541518,123510.0,123500.0,1.77207088]
[1755144156880,0.37733518,123510.0,123500.0,1.77307088]
[1755144157673,0.40641105,123510.0,123500.0,1.77307088]
[1755144158380,0.42640105,123510.0,123500.0,1.77307088]
[1755144158682,0.46378105,123510.0,123500.0,1.77307088]
[1755144159472,0.46378105,123510.0,123500.0,1.32660232]
[1755144159672,0.22005587,123510.0,123500.0,0.96548232]
[1755144159874,0.66652443,123510.0,123500.0,1.41195088]
[1755144160080,0.66652443,123510.0,123500.0,0.96548232]
[1755144160279,0.66652443,123510.0,123500.0,1.41195088]
[1755144160474,0.11005587,123510.0,123500.0,1.41195088]
[1755144160679,0.55652443,123510.0,123500.0,1.41195088]
[1755144161076,0.5774992,123510.0,123500.0,1.41195088]
[1755144161379,0.5774992,123510.0,123500.0,1.77275088]
[1755144161882,0.5774992,123510.0,123500.0,1.02147088]
[1755144162177,0.5774992,123510.0,123500.0,1.77275088]
[1755144162482,0.13103064,123510.0,123500.0,1.77275088]
[1755144162682,0.5428192,123510.0,123500.0,1.77275088]
[1755144163181,0.5548892,123510.0,123500.0,1.77275088]
[1755144164183,0.5428192,123510.0,123500.0,1.77275088]
[1755144165385,0.6584342,123510.0,123500.0,1.02147088]
[1755144165682,0.6000392,123510.0,123500.0,1.77275088]
[1755144166076,0.5784992,123510.0,123500.0,1.77275088]
[1755144166481,0.5774992,123510.0,123500.0,1.77175088]
[1755144166876,0.4975192,123510.0,123500.0,1.77175088]
[1755144167080,0.4975192,123510.0,123500.0,1.02047088]
[1755144167281,0.4975192,123510.0,123500.0,1.77275088]
[1755144167771,0.05105064,123510.0,123500.0,1.02147088]
[1755144167971,0.05105064,123510.0,123500.0,1.46793944]
[1755144168187,0.05105064,123510.0,123500.0,1.77275088]
[1755144170586,0.05105064,123510.0,123500.0,1.75965935]
[1755144170790,0.05105064,123510.0,123500.0,1.77231761]
[1755144171885,0.05105064,123510.0,123500.0,1.32584905]
[1755144172083,0.05105064,123510.0,123500.0,1.77231761]
[1755144175684,0.05105064,123510.0,123500.0,2.21866617]
[1755144176789,0.0644638,123530.0,123520.0,0.2006985]
[1755144176995,0.01999,123530.0,123520.0,1.77178532]
[1755144177191,1.51999,123530.0,123520.0,1.77178532]
[1755144177988,1.53206,123530.0,123520.0,1.77178532]
[1755144178194,1.98052856,123530.0,123520.0,1.77178532]
[1755144178588,1.98052856,123530.0,123520.0,1.77278532]
[1755144178787,2.04617702,123530.0,123520.0,1.77278532]
[1755144179388,1.56764846,123530.0,123520.0,1.77278532]
[1755144179784,1.59583703,123530.0,123520.0,1.77278532]
[1755144179988,1.59583703,123530.0,123520.0,1.77274532]
[1755144180193,0.09583703,123530.0,123520.0,1.02162532]
[1755144180495,0.09583703,123530.0,123520.0,1.77274532]
[1755144182597,1.96422284,123540.0,123530.0,0.21541487]
[1755144182786,2.02422284,123540.0,123530.0,0.67454169]
[1755144182990,2.02422284,123540.0,123530.0,1.03534169]
[1755144183485,2.04421284,123540.0,123530.0,1.03534169]
[1755144183689,1.69241824,123540.0,123530.0,1.03534169]
[1755144183890,1.67342824,123540.0,123530.0,1.03534169]
[1755144184090,1.67342824,123540.0,123530.0,1.78638169]
[1755144184091,1.67542824,123540.0,123530.0,1.78638169]
[1755144184590,1.67542824,123540.0,123530.0,0.58887313]
[1755144184795,1.70748824,123540.0,123530.0,1.33991313]
[1755144185094,0.23867396,123540.0,123530.0,1.32519016]
[1755144185297,0.19358396,123540.0,123530.0,1.72173682]
[1755144185486,0.17359396,123540.0,123530.0,1.72173682]
[1755144185690,0.09767396,123540.0,123530.0,1.72173682]
[1755144185997,0.03218625,123540.0,123530.0,1.72173682]
[1755144188488,0.03218625,123540.0,123530.0,1.72169682]
[1755144188694,0.05356277,123540.0,123530.0,0.97069682]
[1755144188999,0.05356277,123540.0,123530.0,1.72169682]
[1755144189191,0.05356277,123540.0,123530.0,1.32515016]
[1755144189391,0.07355277,123540.0,123530.0,1.72169682]
[1755144189694,0.08562277,123540.0,123530.0,0.97069682]
[1755144189899,0.07355277,123540.0,123530.0,1.72165682]
[1755144190602,0.07355277,123540.0,123530.0,1.72165354]
[1755144191292,0.07355277,123540.0,123530.0,0.57414688]
[1755144191492,0.07355277,123540.0,123530.0,1.32506688]
[1755144193599,0.05356277,123540.0,123530.0,1.32506688]
[1755144194102,0.05356277,123540.0,123530.0,1.72161354]
[1755144194702,0.05356277,123540.0,123530.0,1.32506688]
[1755144194902,0.05356277,123540.0,123530.0,1.72161354]
[1755144195698,0.40485042,123550.0,123540.0,0.07052723]
[1755144195904,0.54296405,123550.0,123540.0,0.26057761]
[1755144196402,0.93951071,123550.0,123540.0,0.26057761]
[1755144197003,0.94451071,123550.0,123540.0,0.26057761]
[1755144197595,0.86359771,123550.0,123540.0,0.26057761]
[1755144198796,0.86359771,123550.0,123540.0,0.21334038]
[1755144199096,0.88613771,123550.0,123540.0,0.21334038]
[1755144199297,0.88613771,123550.0,123540.0,0.21334063]
[1755144199899,0.48959105,123550.0,123540.0,0.21334063]
[1755144200300,0.88613771,123550.0,123540.0,0.21334063]
[1755144200598,0.88613771,123550.0,123540.0,0.09357063]
[1755144200797,1.99773771,123550.0,123540.0,0.01265523]
[1755144200997,1.99773771,123550.0,123540.0,0.09357063]
[1755144201308,1.99773771,123550.0,123540.0,0.11696063]
[1755144203601,2.05572125,123550.0,123540.0,0.11696063]
[1755144205095,1.69492125,123550.0,123540.0,0.11696063]
[1755144206006,1.63693771,123550.0,123540.0,0.11696063]
[1755144206202,1.99773771,123550.0,123540.0,0.11696063]
[1755144207211,2.05577786,123550.0,123540.0,0.11696063]
[1755144207806,2.07745338,123550.0,123540.0,0.11696063]
[1755144208604,2.06903894,123550.0,123540.0,0.11696063]
[1755144209107,0.61418276,123550.0,123540.0,0.611383]
[1755144209308,0.75276513,123550.0,123540.0,0.660123]
[1755144209511,0.85621393,123550.0,123540.0,0.660123]
[1755144209912,0.77530513,123550.0,123540.0,0.21395063]
[1755144210108,0.77530513,123550.0,123540.0,0.660123]
[1755144211713,0.77430513,123550.0,123540.0,0.660123]
[1755144212316,1.52494513,123550.0,123540.0,0.660123]
[1755144212704,1.07877276,123550.0,123540.0,0.21395063]
[1755144213115,1.07577276,123550.0,123540.0,0.21395063]
[1755144213312,1.13482937,123550.0,123540.0,0.21395063]
[1755144214117,0.36064937,123550.0,123540.0,0.57475063]
[1755144214517,0.38318937,123550.0,123540.0,0.57475063]
[1755144214912,0.34857937,123550.0,123540.0,0.9712732]
[1755144215111,0.32858937,123550.0,123540.0,1.7218732]
[1755144215311,0.30743937,123550.0,123540.0,1.32535063]
[1755144215511,0.38834817,123550.0,123540.0,1.7218732]
[1755144215714,0.32742937,123550.0,123540.0,1.7218732]
[1755144215922,0.24938276,123550.0,123540.0,0.9712732]
[1755144216121,0.24938276,123550.0,123540.0,1.7218732]
[1755144216419,0.11412276,123550.0,123540.0,1.7218732]
[1755144216821,0.11312276,123550.0,123540.0,0.9712732]
[1755144217016,0.11312276,123550.0,123540.0,1.7218332]
[1755144217520,0.11312276,123550.0,123540.0,1.72183296]
[1755144217823,0.11312276,123550.0,123540.0,0.97127296]
[1755144218119,0.11312276,123550.0,123540.0,1.72283296]
[1755144219922,0.02167552,123550.0,123540.0,1.72283296]
[1755144220112,0.02167552,123550.0,123540.0,1.32631039]
[1755144220308,0.57757689,123550.0,123540.0,0.52701039]
[1755144220612,0.77631767,123550.0,123540.0,0.09457039]
[1755144221315,1.52679767,123550.0,123540.0,0.11739039]
[1755144221514,1.58485428,123550.0,123540.0,0.11739039]
[1755144222216,1.58485428,123550.0,123540.0,0.09457039]
[1755144222417,1.58485428,123550.0,123540.0,0.11739039]
[1755144223423,1.94565428,123550.0,123540.0,0.11739039]
[1755144223625,1.19517428,123550.0,123540.0,0.11739039]
[1755144223824,1.94561428,123550.0,123540.0,0.11739039]
[1755144224121,1.88755767,123550.0,123540.0,0.11739039]
[1755144224321,1.92749496,123550.0,123540.0,0.11739039]
[1755144224721,1.92749496,123550.0,123540.0,0.01365499]
[1755144225422,1.92749496,123550.0,123540.0,0.09457039]
[1755144226020,1.92749496,123550.0,123540.0,0.11739039]
[1755144228127,1.98555157,123550.0,123540.0,0.11739039]
[1755144229223,1.98555157,123550.0,123540.0,0.03647499]
[1755144229424,1.98555157,123550.0,123540.0,0.11739039]
[1755144229624,1.98555157,123550.0,123540.0,0.11739143]
[1755144230223,1.98555157,123550.0,123540.0,0.03647603]
[1755144230424,1.98555157,123550.0,123540.0,0.11739143]
[1755144231525,1.23511157,123550.0,123540.0,0.11739143]
[1755144231729,1.98547157,123550.0,123540.0,0.11739143]
[1755144233927,1.98547157,123550.0,123540.0,0.03647603]
[1755144234128,1.98547157,123550.0,123540.0,0.11739143]
[1755144237127,1.98547157,123550.0,123540.0,0.03647603]
[1755144237329,1.23511157,123550.0,123540.0,0.03647603]
[1755144237633,1.98539157,123550.0,123540.0,0.03647603]
[1755144237832,1.98539157,123550.0,123540.0,0.01365603]
[1755144238130,1.23511157,123550.0,123540.0,0.01365603]
[1755144238429,1.98539157,123550.0,123540.0,0.01365603]
[1755144239435,1.23511157,123550.0,123540.0,0.01365603]
[1755144239636,1.98535157,123550.0,123540.0,0.01365603]
[1755144242143,1.588829,123550.0,123540.0,0.01365603]
[1755144242341,1.98535157,123550.0,123540.0,0.01365603]
[1755144246649,1.23511157,123550.0,123540.0,0.01365603]
[1755144246839,1.53069239,123550.0,123540.0,0.01365603]
[1755144247042,1.17705496,123550.0,123540.0,0.01365603]
[1755144247237,1.17705496,123550.0,123540.0,0.11943143]
[1755144247437,1.92717496,123550.0,123540.0,0.11943143]
[1755144249047,1.56637496,123550.0,123540.0,0.11943143]
[1755144249244,1.92717496,123550.0,123540.0,0.11943143]
[1755144249450,1.56637496,123550.0,123540.0,0.11943143]
[1755144250054,1.92717496,123550.0,123540.0,0.11943143]
[1755144251752,1.92717496,123550.0,123540.0,0.17812143]
[1755144252254,1.92717496,123550.0,123540.0,0.19996143]
[1755144252456,1.92717496,123550.0,123540.0,0.11904603]
[1755144252643,1.92717496,123550.0,123540.0,0.13403603]
[1755144252848,1.92717496,123550.0,123540.0,0.133036]
[1755144253055,1.92717496,123550.0,123540.0,0.134036]
[1755144253555,1.92717496,123550.0,123540.0,0.2149514]
[1755144253748,1.53065239,123550.0,123540.0,0.2149514]
[1755144253948,1.92717496,123550.0,123540.0,0.2149514]
[1755144254150,1.17705496,123550.0,123540.0,0.2149514]
[1755144254447,1.92713496,123550.0,123540.0,0.2149514]
[1755144254757,1.92713496,123550.0,123540.0,0.2169514]
[1755144256660,1.92713496,123550.0,123540.0,0.136036]
[1755144257357,1.92713496,123550.0,123540.0,0.121046]
[1755144257756,1.58869781,123550.0,123540.0,0.121046]
[1755144258058,1.98522038,123550.0,123540.0,0.121046]
[1755144258447,1.92713496,123550.0,123540.0,0.121046]
[1755144258860,1.92713496,123550.0,123540.0,0.040516]
[1755144259656,0.1291454,123540.0,123530.0,0.3382837]
[1755144259863,0.78088139,123540.0,123530.0,0.3382837]
[1755144260558,1.14168139,123540.0,123530.0,0.3382837]
[1755144260759,0.78188139,123540.0,123530.0,0.3402837]
[1755144261159,0.78188139,123540.0,123530.0,0.3422837]
[1755144261160,1.53192139,123540.0,123530.0,0.3422837]
[1755144261665,1.53192139,123540.0,123530.0,0.3671437]
[1755144263768,1.47384349,123540.0,123530.0,0.3671437]
[1755144264665,1.96976148,123540.0,123530.0,0.3671437]
[1755144268567,2.02783938,123540.0,123530.0,0.3671437]
[1755144270960,1.27779938,123540.0,123530.0,0.3671437]
[1755144271158,2.02775938,123540.0,123530.0,0.3671437]
[1755144271763,2.02775938,123540.0,123530.0,0.37980019]
[1755144271966,1.07724092,123540.0,123530.0,0.82602047]
[1755144272165,1.5234612,123540.0,123530.0,0.74060019]
[1755144272367,1.5234612,123540.0,123530.0,1.18682047]
[1755144272558,1.5234612,123540.0,123530.0,0.82602047]
[1755144273469,1.5234612,123540.0,123530.0,0.81336398]
[1755144273664,1.5234612,123540.0,123530.0,0.82602006]
[1755144273865,0.7735012,123540.0,123530.0,0.82602006]
[1755144274365,0.7735012,123540.0,123530.0,1.18682006]
[1755144275459,0.7735012,123540.0,123530.0,0.74059978]
[1755144275661,0.7735012,123540.0,123530.0,1.18682006]
[1755144276160,0.7735012,123540.0,123530.0,0.74059978]
[1755144276359,0.7735012,123540.0,123530.0,1.18682006]
[1755144277367,0.7735012,123540.0,123530.0,0.82602006]
[1755144277965,0.32728092,123540.0,123530.0,0.82602006]
[1755144278270,0.7735012,123540.0,123530.0,0.82602006]
[1755144278768,0.7735012,123540.0,123530.0,0.74059978]
[1755144278961,0.7735012,123540.0,123530.0,0.82602006]
[1755144279267,0.7735012,123540.0,123530.0,1.18682006]
[1755144279663,0.7735012,123540.0,123530.0,0.82602006]
[1755144281264,0.7735012,123540.0,123530.0,1.18682006]
[1755144281664,0.7735012,123540.0,123530.0,0.82602006]
[1755144282569,0.7735012,123540.0,123530.0,1.18682006]
[1755144283866,0.7735012,123540.0,123530.0,0.82602006]
[1755144284069,0.7735012,123540.0,123530.0,0.37979978]
[1755144284261,1.96948148,123540.0,123530.0,0.37979978]
[1755144284462,1.96948148,123540.0,123530.0,0.29887788]
[1755144284774,1.95948148,123540.0,123530.0,0.29887788]
[1755144285874,1.20972148,123540.0,123530.0,0.29887788]
[1755144286075,1.95948148,123540.0,123530.0,0.29887788]
[1755144288370,1.97948148,123540.0,123530.0,0.29887788]
[1755144289472,1.08704092,123540.0,123530.0,0.29887788]
[1755144289777,1.97948148,123540.0,123530.0,0.29887788]
[1755144290368,1.22972148,123540.0,123530.0,0.29887788]
[1755144290678,1.97940148,123540.0,123530.0,0.29887788]
[1755144290979,2.03747938,123540.0,123530.0,0.29887788]
[1755144291279,2.03747938,123540.0,123530.0,0.29887832]
[1755144291676,1.97940148,123540.0,123530.0,0.29887832]
[1755144292978,1.97940148,123540.0,123530.0,0.2862218]
[1755144293278,1.97940148,123540.0,123530.0,0.29887827]
[1755144293478,2.03747938,123540.0,123530.0,0.29887827]
[1755144298882,2.03731938,123540.0,123530.0,0.29887827]
[1755144300486,2.03731938,123540.0,123530.0,0.29887816]
[1755144301687,1.14487882,123540.0,123530.0,0.29887816]
[1755144301889,1.28779938,123540.0,123530.0,0.29887816]
[1755144302193,1.14483882,123540.0,123530.0,0.29887816]
[1755144302379,2.03723938,123540.0,123530.0,0.29887816]
[1755144302579,1.14479882,123540.0,123530.0,0.29887816]
[1755144302779,2.03723938,123540.0,123530.0,0.29887816]
[1755144303289,1.28779938,123540.0,123530.0,0.29887816]
[1755144303479,2.03723938,123540.0,123530.0,0.29887816]
[1755144303678,1.97916148,123540.0,123530.0,0.29887816]
[1755144304081,1.22972148,123540.0,123530.0,0.29887816]
[1755144304380,1.97916148,123540.0,123530.0,0.29887816]
[1755144304697,1.08672092,123540.0,123530.0,0.29887816]
[1755144304988,1.97916148,123540.0,123530.0,0.29887816]
[1755144305287,1.5329412,123540.0,123530.0,0.29887816]
[1755144306593,0.7835012,123540.0,123530.0,0.65967816]
[1755144306783,1.5329012,123540.0,123530.0,0.65967816]
[1755144307388,1.5329012,123540.0,123530.0,1.10589844]
[1755144307586,0.7835012,123540.0,123530.0,1.10589844]
[1755144307792,1.5328612,123540.0,123530.0,1.10589844]
[1755144308593,1.5328612,123540.0,123530.0,0.65967816]
[1755144308890,0.7835012,123540.0,123530.0,0.29887816]
[1755144309084,1.5328612,123540.0,123530.0,0.29887816]
[1755144309590,1.97908148,123540.0,123530.0,0.29887816]
[1755144310584,1.95740596,123540.0,123530.0,0.29887816]
[1755144310790,1.97967761,123540.0,123530.0,0.29887816]
[1755144311194,1.97967761,123540.0,123530.0,0.2862218]
[1755144311486,1.97967761,123540.0,123530.0,0.29887842]
[1755144315294,2.03775551,123540.0,123530.0,0.29887842]
[1755144315488,1.97967761,123540.0,123530.0,0.29887842]
[1755144315691,1.97967761,123540.0,123530.0,0.17849842]
[1755144317596,1.23031761,123540.0,123530.0,0.17849842]
[1755144317794,1.97951761,123540.0,123530.0,0.17849842]
[1755144318598,1.23031761,123540.0,123530.0,0.17849842]
[1755144318797,1.97947761,123540.0,123530.0,0.17849842]
[1755144319298,1.23031761,123540.0,123530.0,0.17849842]
[1755144319489,1.97947761,123540.0,123530.0,0.17849842]
[1755144322502,1.08703705,123540.0,123530.0,0.17849842]
[1755144322703,1.97947761,123540.0,123530.0,0.17849842]
[1755144323301,1.97947761,123540.0,123530.0,0.17849853]
[1755144323501,1.23031761,123540.0,123530.0,0.17849853]
[1755144323700,1.59111761,123540.0,123530.0,0.01665673]
[1755144324005,0.1853981,123520.0,123510.0,0.6265076]
[1755144324201,0.76389003,123520.0,123510.0,0.6265076]
[1755144324705,0.76389003,123520.0,123510.0,0.6705776]
[1755144324905,0.76389003,123520.0,123510.0,0.5896433]
[1755144325298,0.76489003,123520.0,123510.0,0.5976433]
[1755144326608,0.76489003,123520.0,123510.0,0.6203033]
[1755144328097,0.76489003,123520.0,123510.0,0.6367833]
[1755144328296,0.76489003,123520.0,123510.0,0.6514933]
[1755144329107,0.76489003,123520.0,123510.0,0.5705614]
[1755144330107,0.76489003,123520.0,123510.0,0.48963]
[1755144330800,0.76489003,123520.0,123510.0,0.4402]